fUSD/lending_fUSD_20251001
["ID","MTS","AMOUNT","RATE_DAILY","PERIOD"]
[388647977,1759296687489,-500.0,0.00024931,2]
[388647978,1759296687499,-500.0,0.00024931,2]
[388647979,1759296687511,-500.0,0.00024931,2]
[388647980,1759296687521,-1153.21,0.00024931,2]
[388647981,1759296687533,-500.0,0.00024931,2]
[388647982,1759296687543,-217.20609175,0.00024931,2]
[388647983,1759296687553,-500.0,0.00024931,2]
[388647984,1759296687563,-1000.0,0.00024931,2]
[388647985,1759296687573,-4313.53,0.00024931,2]
[388647986,1759296687584,-500.0,0.00024931,2]
[388647987,1759296687595,-2308.67,0.00024931,2]
[388647988,1759296687606,-748.42,0.00024931,2]
[388647989,1759296687616,-653.7,0.00024931,2]
[388647990,1759296687627,-3610.59,0.00024931,2]
[388647991,1759296687637,-1044.39,0.00024931,2]
[388647992,1759296687647,-571.37,0.00024931,2]
[388647993,1759296687656,-1515.23,0.00024931,2]
[388647994,1759296687666,-500.0,0.00024931,2]
[388647995,1759296687680,-500.0,0.00024931,2]
[388647996,1759296687691,-1007.33,0.00024931,2]
[388647997,1759296687702,-500.0,0.00024931,2]
[388647998,1759296687714,-500.0,0.00024931,2]
[388647999,1759296687725,-501.89240843,0.00024931,2]
[388648000,1759296687735,-500.0,0.00024931,2]
[388648001,1759296687744,-500.0,0.00024931,2]
[388648002,1759296687755,-751.37,0.00024931,2]
[388648003,1759296687765,-5603.21,0.00024931,2]
[388648004,1759296687774,-500.0,0.00024931,2]
[388648005,1759296687784,-500.0,0.00024931,2]
[388648006,1759296687794,-525.16066622,0.00024931,2]
[388648007,1759296687804,-500.0,0.00024931,2]
[388648008,1759296687815,-500.0,0.00024931,2]
[388648009,1759296687824,-387.21845048,0.00024931,2]
[388648010,1759296687834,-500.0,0.00024931,2]
[388648011,1759296687846,-1549.03,0.00024931,2]
[388648012,1759296687856,-2228.19,0.00024931,2]
[388648013,1759296687866,-518.65,0.00024931,2]
[388648014,1759296687876,-2047.36,0.00024931,2]
[388648015,1759296687888,-546.08,0.00024931,2]
[388648016,1759296687899,-558.29,0.00024931,2]
[388648017,1759296687910,-500.0,0.00024931,2]
[388648018,1759296687921,-1360.53,0.00024931,2]
[388648019,1759296687931,-500.0,0.00024931,2]
[388648020,1759296687941,-2365.91,0.00024931,2]
[388648021,1759296687951,-500.0,0.00024931,2]
[388648022,1759296687960,-500.0,0.00024931,2]
[388648023,1759296687971,-500.0,0.00024931,2]
[388648024,1759296687982,-3048.21,0.00024931,2]
[388648025,1759296687992,-1171.01,0.00024931,2]
[388648026,1759296688003,-527.29,0.00024931,2]
[388648027,1759296688014,-802.18,0.00024931,2]
[388648028,1759296688025,-500.0,0.00024931,2]
[388648029,1759296688035,-500.0,0.00024931,2]
[388648030,1759296688045,-500.0,0.00024931,2]
[388648031,1759296688055,-500.0,0.00024931,2]
[388648032,1759296688066,-2747.89,0.00024931,2]
[388648033,1759296688076,-804.96,0.00024931,2]
[388648034,1759296688086,-501.23156547,0.00024931,2]
[388648035,1759296688096,-500.0,0.00024931,2]
[388648036,1759296688107,-501.25440354,0.00024931,2]
[388648037,1759296688116,-2195.98,0.00024931,2]
[388648038,1759296688127,-500.0,0.00024931,2]
[388648039,1759296688139,-3284.56,0.00024931,2]
[388648040,1759296688150,-503.37,0.00024931,2]
[388648041,1759296688161,-500.45650781,0.00024931,2]
[388648042,1759296688171,-500.0,0.00024931,2]
[388648043,1759296688180,-1145.02,0.00024931,2]
[388648044,1759296688190,-1934.12,0.00024931,2]
[388648045,1759296688200,-2040.46,0.00024931,2]
[388648046,1759296688212,-798.66,0.00024931,2]
[388648047,1759296688222,-500.0,0.00024931,2]
[388648048,1759296688232,-501.82,0.00024931,2]
[388648049,1759296688243,-2940.77,0.00024931,2]
[388648050,1759296688255,-4576.56,0.00024931,2]
[388648051,1759296688267,-500.0,0.00024931,2]
[388648052,1759296688277,-501.15360349,0.00024931,2]
[388648053,1759296688287,-1445.93,0.00024931,2]
[388648054,1759296688298,-1758.89,0.00024931,2]
[388648055,1759296688310,-3477.9,0.00024931,2]
[388648056,1759296688322,-500.0,0.00024931,2]
[388648057,1759296688332,-500.0,0.00024931,2]
[388648058,1759296688343,-518.94,0.00024931,2]
[388648059,1759296688355,-1140.85,0.00024931,2]
[388648060,1759296688365,-1848.71,0.00024931,2]
[388648061,1759296688375,-1534.95,0.00024931,2]
[388648062,1759296688385,-498.65694755,0.00024931,2]
[388648063,1759296688396,-901.38,0.00024931,2]
[388648064,1759296688407,-500.0,0.00024931,2]
[388648065,1759296688417,-297.71586848,0.00024931,2]
[388648066,1759296688430,-4413.22,0.00024931,2]
[388648067,1759296688440,-500.0,0.00024931,2]
[388648068,1759296688450,-500.0,0.00024931,2]
[388648069,1759296688460,-504.31703248,0.00024931,2]
[388648070,1759296688470,-1372.88,0.00024931,2]
[388648071,1759296688480,-500.0,0.00024931,2]
[388648072,1759296688490,-500.0,0.00024931,2]
[388648073,1759296688500,-3397.58,0.00024931,2]
[388648074,1759296688509,-500.0,0.00024931,2]
[388648075,1759296688519,-505.02,0.00024931,2]
[388648076,1759296688530,-3652.05,0.00024931,2]
[388648077,1759296688540,-4150.56,0.00024931,2]
[388648078,1759296688551,-509.2,0.00024931,2]
[388648079,1759296688560,-939.27,0.00024931,2]
[388648080,1759296688570,-353.99862074,0.00024931,2]
[388648081,1759296688580,-4592.5,0.00024931,2]
[388648082,1759296688590,-500.0,0.00024931,2]
[388648083,1759296688600,-501.20171162,0.00024931,2]
[388648084,1759296688610,-1518.24,0.00024931,2]
[388648085,1759296688621,-500.0,0.00024931,2]
[388648086,1759296688633,-500.0,0.00024931,2]
[388648087,1759296688644,-2689.94,0.00024931,2]
[388648088,1759296688656,-500.0,0.00024931,2]
[388648089,1759296688666,-500.25,0.00024931,2]
[388648090,1759296688680,-885.08,0.00024931,2]
[388648091,1759296688690,-3167.96,0.00024931,2]
[388648092,1759296688699,-886.56,0.00024931,2]
[388648093,1759296688710,-493.20653514,0.00024931,2]
[388648094,1759296688721,-500.0,0.00024931,2]
[388648095,1759296688731,-589.43,0.00024931,2]
[388648096,1759296688742,-500.0,0.00024931,2]
[388648097,1759296688752,-529.28,0.00024931,2]
[388648098,1759296688763,-500.0,0.00024931,2]
[388648099,1759296688772,-1454.86,0.00024931,2]
[388648100,1759296688783,-633.88,0.00024931,2]
[388648101,1759296688794,-500.0,0.00024931,2]
[388648102,1759296688805,-1336.06,0.00024931,2]
[388648103,1759296688814,-500.0,0.00024931,2]
[388648104,1759296688824,-500.0,0.00024931,2]
[388648105,1759296688834,-3292.88,0.00024931,2]
[388648106,1759296688846,-709.2,0.00024931,2]
[388648107,1759296688857,-410.45110335,0.00024931,2]
[388648108,1759296688868,-500.0,0.00024931,2]
[388648109,1759296688878,-744.9,0.00024931,2]
[388648110,1759296688890,-2820.78,0.00024931,2]
[388648111,1759296688901,-777.93,0.00024931,2]
[388648112,1759296688912,-500.0,0.00024931,2]
[388648113,1759296688921,-500.0,0.00024931,2]
[388648114,1759296688932,-500.0,0.00024931,2]
[388648115,1759296688942,-2879.12,0.00024931,2]
[388648116,1759296688952,-500.0,0.00024931,2]
[388648117,1759296688964,-2552.71,0.00024931,2]
[388648118,1759296688973,-3960.23,0.00024931,2]
[388648119,1759296688983,-885.46,0.00024931,2]
[388648120,1759296688993,-2068.97,0.00024931,2]
[388648121,1759296689003,-500.0,0.00024931,2]
[388648122,1759296689013,-3689.64,0.00024931,2]
[388648123,1759296689023,-2771.64,0.00024931,2]
[388648124,1759296689033,-396.69449026,0.00024931,2]
[388648125,1759296689044,-500.0,0.00024931,2]
[388648126,1759296689053,-2279.06,0.00024931,2]
[388648127,1759296689064,-500.0,0.00024931,2]
[388648128,1759296689074,-500.0,0.00024931,2]
[388648129,1759296689084,-651.28,0.00024931,2]
[388648130,1759296689094,-500.0,0.00024931,2]
[388648131,1759296689104,-500.0,0.00024931,2]
[388648132,1759296689114,-4078.26,0.00024931,2]
[388648133,1759296689125,-2778.38,0.00024931,2]
[388648134,1759296689135,-796.02,0.00024931,2]
[388648135,1759296689446,-500.0,0.00024931,2]
[388648136,1759296689501,-1545.47,0.00024931,2]
[388648137,1759296689511,-500.0,0.00024931,2]
[388648138,1759296689521,-500.0,0.00024931,2]
[388648139,1759296689530,-2694.5,0.00024931,2]
[388648140,1759296689541,-783.28,0.00024931,2]
[388648141,1759296689550,-282.36330424,0.00024931,2]
[388648142,1759296689559,-500.0,0.00024931,2]
[388648143,1759296689568,-3514.66,0.00024931,2]
[388648144,1759296689578,-1587.45,0.00024931,2]
[388648145,1759296689588,-399.8591448,0.00024931,2]
[388648146,1759296689598,-548.82,0.00024931,2]
[388648147,1759296689609,-500.0,0.00024931,2]
[388648148,1759296689621,-500.0,0.00024931,2]
[388648149,1759296689631,-500.0,0.00024931,2]
[388648150,1759296689643,-824.07,0.00024931,2]
[388648151,1759296689653,-2021.31,0.00024931,2]
[388648152,1759296689662,-2588.41,0.00024931,2]
[388648153,1759296689675,-1040.91,0.00024931,2]
[388648154,1759296689686,-645.00227228,0.00024931,2]
[388648155,1759296689696,-500.0,0.00024931,2]
[388648156,1759296689708,-4440.26,0.00024931,2]
[388648157,1759296689717,-267.85892944,0.00024931,2]
[388648158,1759296689728,-334.27667146,0.00024931,2]
[388648159,1759296689741,-500.0,0.00024931,2]
[388648160,1759296689753,-1107.24,0.00024931,2]
[388648161,1759296689763,-500.0,0.00024931,2]
[388648162,1759296689773,-702.61,0.00024931,2]
[388648163,1759296689784,-3532.49,0.00024931,2]
[388648164,1759296689794,-2512.63,0.00024931,2]
[388648165,1759296689803,-500.0,0.00024931,2]
[388648166,1759296689813,-500.0,0.00024931,2]
[388648167,1759296689824,-3108.67,0.00024931,2]
[388648168,1759296689834,-500.0,0.00024931,2]
[388648169,1759296689843,-500.0,0.00024931,2]
[388648170,1759296689855,-573.99,0.00024931,2]
[388648171,1759296689865,-2494.93,0.00024931,2]
[388648172,1759296689874,-500.0,0.00024931,2]
[388648173,1759296689884,-708.53,0.00024931,2]
[388648174,1759296689895,-500.0,0.00024931,2]
[388648175,1759296689904,-500.0,0.00024931,2]
[388648176,1759296689914,-500.0,0.00024931,2]
[388648177,1759296689924,-1003.87,0.00024931,2]
[388648178,1759296689935,-500.0,0.00024931,2]
[388648179,1759296689944,-742.55,0.00024931,2]
[388648180,1759296689953,-559.59736865,0.00024931,2]
[388648181,1759296689963,-199.79436264,0.00024931,2]
[388648182,1759296689972,-500.0,0.00024931,2]
[388648183,1759296689982,-500.0,0.00024931,2]
[388648184,1759296689992,-515.99,0.00024931,2]
[388648185,1759296690001,-500.0,0.00024931,2]
[388648186,1759296690010,-2938.24,0.00024931,2]
[388648187,1759296690020,-500.0,0.00024931,2]
[388648188,1759296690030,-500.0,0.00024931,2]
[388648189,1759296690040,-2467.13,0.00024931,2]
[388648190,1759296690050,-500.0,0.00024931,2]
[388648191,1759296690060,-2688.62,0.00024931,2]
[388648192,1759296690069,-500.0,0.00024931,2]
[388648193,1759296690079,-500.0,0.00024931,2]
[388648194,1759296690088,-500.0,0.00024931,2]
[388648195,1759296690099,-527.72,0.00024931,2]
[388648196,1759296690108,-501.28265608,0.00024931,2]
[388648197,1759296690120,-500.0,0.00024931,2]
[388648198,1759296690129,-2372.98,0.00024931,2]
[388648199,1759296690140,-2923.85,0.00024931,2]
[388648200,1759296690149,-500.0,0.00024931,2]
[388648201,1759296690160,-500.0,0.00024931,2]
[388648202,1759296690170,-3718.91,0.00024931,2]
[388648203,1759296690179,-1441.82,0.00024931,2]
[388648204,1759296690188,-500.0,0.00024931,2]
[388648205,1759296690198,-500.0,0.00024931,2]
[388648206,1759296690207,-1282.85,0.00024931,2]
[388648207,1759296690218,-500.0,0.00024931,2]
[388648208,1759296690227,-500.0,0.00024931,2]
[388648209,1759296690237,-500.0,0.00024931,2]
[388648210,1759296690247,-3099.15,0.00024931,2]
[388648211,1759296690256,-1353.38,0.00024931,2]
[388648212,1759296690265,-1535.61,0.00024931,2]
[388648213,1759296690275,-3778.07,0.00024931,2]
[388648214,1759296690284,-677.62,0.00024931,2]
[388648215,1759296690294,-500.0,0.00024931,2]
[388648216,1759296690303,-2405.03,0.00024931,2]
[388648217,1759296690312,-500.0,0.00024931,2]
[388648218,1759296690323,-1237.59,0.00024931,2]
[388648219,1759296690333,-1232.28,0.00024931,2]
[388648220,1759296690343,-500.0,0.00024931,2]
[388648221,1759296690352,-500.0,0.00024931,2]
[388648222,1759296690361,-3566.55,0.00024931,2]
[388648223,1759296690370,-500.0,0.00024931,2]
[388648224,1759296690379,-641.08,0.00024931,2]
[388648225,1759296690389,-2331.04,0.00024931,2]
[388648226,1759296690399,-4101.68,0.00024931,2]
[388648227,1759296690409,-500.0,0.00024931,2]
[388648228,1759296690419,-939.03,0.00024931,2]
[388648229,1759296690429,-724.12,0.00024931,2]
[388648230,1759296690440,-1210.01,0.00024931,2]
[388648231,1759296690450,-3826.16,0.00024931,2]
[388648232,1759296690459,-500.0,0.00024931,2]
[388648233,1759296690469,-500.0,0.00024931,2]
[388648234,1759296690478,-570.35,0.00024931,2]
[388648235,1759296690489,-500.0,0.00024931,2]
[388648236,1759296690499,-3044.18,0.00024931,2]
[388648237,1759296690509,-1506.14,0.00024931,2]
[388648238,1759296690518,-2447.89,0.00024931,2]
[388648239,1759296690528,-500.0,0.00024931,2]
[388648240,1759296690538,-1672.9,0.00024931,2]
[388648241,1759296690547,-500.0,0.00024931,2]
[388648242,1759296690557,-552.64,0.00024931,2]
[388648243,1759296690567,-1895.54,0.00024931,2]
[388648244,1759296690576,-3112.7,0.00024931,2]
[388648245,1759296690585,-2348.57,0.00024931,2]
[388648246,1759296690594,-1145.6,0.00024931,2]
[388648247,1759296690603,-500.0,0.00024931,2]
[388648248,1759296690613,-500.0,0.00024931,2]
[388648249,1759296690623,-500.0,0.00024931,2]
[388648250,1759296690632,-500.0,0.00024931,2]
[388648251,1759296690642,-500.0,0.00024931,2]
[388648252,1759296690651,-971.72,0.00024931,2]
[388648253,1759296690660,-621.73,0.00024931,2]
[388648254,1759296690671,-500.0,0.00024931,2]
[388648255,1759296690682,-1385.3,0.00024931,2]
[388648256,1759296690693,-709.64,0.00024931,2]
[388648257,1759296690703,-901.02,0.00024931,2]
[388648258,1759296690713,-500.0,0.00024931,2]
[388648259,1759296690722,-2950.55,0.00024931,2]
[388648260,1759296690732,-1015.1,0.00024931,2]
[388648261,1759296690741,-500.0,0.00024931,2]
[388648262,1759296690753,-685.7,0.00024931,2]
[388648263,1759296690762,-2154.77,0.00024931,2]
[388648264,1759296690771,-2820.11,0.00024931,2]
[388648265,1759296690780,-631.97,0.00024931,2]
[388648266,1759296690790,-3631.2,0.00024931,2]
[388648267,1759296690800,-2159.27,0.00024931,2]
[388648268,1759296690811,-3611.67,0.00024931,2]
[388648269,1759296690821,-3622.05,0.00024931,2]
[388648270,1759296690831,-2076.29,0.00024931,2]
[388648271,1759296690841,-3154.32,0.00024931,2]
[388648272,1759296690851,-351.65129602,0.00024931,2]
[388648273,1759296690860,-3248.56,0.00024931,2]
[388648274,1759296690869,-500.0,0.00024931,2]
[388648275,1759296690879,-500.0,0.00024931,2]
[388648276,1759296690888,-2225.15,0.00024931,2]
[388648277,1759296690897,-1053.1,0.00024931,2]
[388648278,1759296690907,-709.42,0.00024931,2]
[388648279,1759296690918,-794.16,0.00024931,2]
[388648280,1759296690929,-3308.42,0.00024931,2]
[388648281,1759296690939,-601.0,0.00024931,2]
[388648282,1759296690949,-885.03,0.00024931,2]
[388648283,1759296690958,-724.38,0.00024931,2]
[388648284,1759296690967,-500.0,0.00024931,2]
[388648285,1759296690976,-500.0,0.00024931,2]
[388648286,1759296690985,-776.72,0.00024931,2]
[388648287,1759296690996,-500.0,0.00024931,2]
[388648288,1759296691005,-500.0,0.00024931,2]
[388648289,1759296691015,-500.0,0.00024931,2]
[388648290,1759296691024,-1644.38,0.00024931,2]
[388648291,1759296691033,-676.69,0.00024931,2]
[388648292,1759296691043,-820.11,0.00024931,2]
[388648293,1759296691052,-500.0,0.00024931,2]
[388648294,1759296691063,-2053.62,0.00024931,2]
[388648295,1759296691072,-500.0,0.00024931,2]
[388648296,1759296691082,-1756.35,0.00024931,2]
[388648297,1759296691091,-554.2683164,0.00024931,2]
[388648298,1759296691100,-500.0,0.00024931,2]
[388648299,1759296691110,-669.61,0.00024931,2]
[388648300,1759296691119,-500.0,0.00024931,2]
[388648301,1759296691128,-500.0,0.00024931,2]
[388648302,1759296691137,-500.0,0.00024931,2]
[388648303,1759296691146,-731.84,0.00024931,2]
[388648304,1759296691155,-1695.42,0.00024931,2]
[388648305,1759296691164,-1804.34,0.00024931,2]
[388648306,1759296691173,-500.0,0.00024931,2]
[388648307,1759296691182,-596.2,0.00024931,2]
[388648308,1759296691192,-3847.2,0.00024931,2]
[388648309,1759296691201,-500.0,0.00024931,2]
[388648310,1759296691211,-3493.6,0.00024931,2]
[388648311,1759296691220,-4086.01,0.00024931,2]
[388648312,1759296691229,-500.0,0.00024931,2]
[388648313,1759296691239,-500.0,0.00024931,2]
[388648314,1759296691248,-500.0,0.00024931,2]
[388648315,1759296691257,-1555.82,0.00024931,2]
[388648316,1759296691266,-500.0,0.00024931,2]
[388648317,1759296691275,-500.0,0.00024931,2]
[388648318,1759296691285,-2860.0,0.00024931,2]
[388648319,1759296691294,-2732.61,0.00024931,2]
[388648320,1759296691303,-500.0,0.00024931,2]
[388648321,1759296691312,-573.02,0.00024931,2]
[388648322,1759296691322,-500.0,0.00024931,2]
[388648323,1759296691332,-517.71,0.00024931,2]
[388648324,1759296691340,-3751.63,0.00024931,2]
[388648325,1759296691350,-500.0,0.00024931,2]
[388648326,1759296691359,-2019.05,0.00024931,2]
[388648327,1759296691368,-500.0,0.00024931,2]
[388648328,1759296691378,-500.0,0.00024931,2]
[388648329,1759296691387,-598.2,0.00024931,2]
[388648330,1759296691395,-500.0,0.00024931,2]
[388648331,1759296691404,-500.0,0.00024931,2]
[388648332,1759296691414,-500.0,0.00024931,2]
[388648333,1759296691423,-500.0,0.00024931,2]
[388648334,1759296691432,-7990.04,0.00024931,2]
[388648335,1759296691441,-1673.41883901,0.00024931,2]
[388648336,1759296691484,-2813.03116099,0.00024931,2]
[388648337,1759296691493,-738.28,0.00024931,2]
[388648338,1759296691503,-500.0,0.00024931,2]
[388648339,1759296691514,-500.0,0.00024931,2]
[388648340,1759296691523,-1546.63,0.00024931,2]
[388648341,1759296691532,-3126.4,0.00024931,2]
[388648342,1759296691542,-1635.7,0.00024931,2]
[388648343,1759296691551,-2457.38,0.00024931,2]
[388648344,1759296691560,-1445.21,0.00024931,2]
[388648345,1759296691570,-290.51368684,0.00024931,2]
[388648346,1759296691579,-690.09,0.00024931,2]
[388648347,1759296691588,-500.0,0.00024931,2]
[388648348,1759296691598,-500.0,0.00024931,2]
[388648349,1759296691607,-11909.44,0.00024931,2]
[388648350,1759296691617,-372.48838063,0.00024931,2]
[388648351,1759296691627,-1979.38,0.00024931,2]
[388648352,1759296691636,-500.0,0.00024931,2]
[388648353,1759296691645,-1600.75,0.00024931,2]
[388648354,1759296691654,-2453.23,0.00024931,2]
[388648355,1759296691663,-2308.42,0.00024931,2]
[388648356,1759296691673,-500.0,0.00024931,2]
[388648357,1759296691682,-2588.73,0.00024931,2]
[388648358,1759296691691,-500.0,0.00024931,2]
[388648359,1759296691700,-511.23,0.00024931,2]
[388648360,1759296691709,-1211.87,0.00024931,2]
[388648361,1759296691718,-621.49,0.00024931,2]
[388648362,1759296691728,-2963.23,0.00024931,2]
[388648363,1759296691737,-500.0,0.00024931,2]
[388648364,1759296691746,-574.67,0.00024931,2]
[388648365,1759296691756,-1467.69,0.00024931,2]
[388648366,1759296691765,-500.0,0.00024931,2]
[388648367,1759296691775,-4912.85,0.00024931,2]
[388648368,1759296691784,-994.12,0.00024931,2]
[388648369,1759296691793,-2288.75,0.00024931,2]
[388648370,1759296691802,-500.0,0.00024931,2]
[388648371,1759296691811,-1354.99,0.00024931,2]
[388648372,1759296691819,-2663.51,0.00024931,2]
[388648373,1759296691828,-500.0,0.00024931,2]
[388648374,1759296691837,-4656.47,0.00024931,2]
[388648375,1759296691846,-577.06,0.00024931,2]
[388648376,1759296691855,-4264.19,0.00024931,2]
[388648377,1759296691863,-3469.7,0.00024931,2]
[388648378,1759296691873,-500.0,0.00024931,2]
[388648379,1759296691884,-1642.77,0.00024931,2]
[388648380,1759296691893,-1012.4,0.00024931,2]
[388648381,1759296691902,-761.05,0.00024931,2]
[388648382,1759296691911,-3224.21,0.00024931,2]
[388648383,1759296691920,-501.31,0.00024931,2]
[388648384,1759296691930,-3623.64,0.00024931,2]
[388648385,1759296691939,-500.0,0.00024931,2]
[388648386,1759296691948,-500.0,0.00024931,2]
[388648387,1759296691957,-1320.77,0.00024931,2]
[388648388,1759296691966,-2198.19,0.00024931,2]
[388648389,1759296691976,-8978.16,0.00024931,2]
[388648390,1759296691986,-1584.71,0.00024931,2]
[388648391,1759296691995,-500.0,0.00024931,2]
[388648392,1759296692004,-500.0,0.00024931,2]
[388648393,1759296692013,-1633.38,0.00024931,2]
[388648394,1759296692022,-500.0,0.00024931,2]
[388648395,1759296692031,-2851.67,0.00024931,2]
[388648396,1759296692040,-500.0,0.00024931,2]
[388648397,1759296692050,-9671.85,0.00024931,2]
[388648398,1759296692059,-500.0,0.00024931,2]
[388648399,1759296692068,-6644.47,0.00024931,2]
[388648400,1759296692078,-932.46,0.00024931,2]
[388648401,1759296692088,-500.0,0.00024931,2]
[388648402,1759296692099,-2775.82,0.00024931,2]
[388648403,1759296692108,-500.0,0.00024931,2]
[388648404,1759296692117,-1898.86,0.00024931,2]
[388648405,1759296692126,-794.96,0.00024931,2]
[388648406,1759296692135,-500.0,0.00024931,2]
[388648407,1759296692144,-500.0,0.00024931,2]
[388648408,1759296692153,-801.74,0.00024931,2]
[388648409,1759296692162,-500.0,0.00024931,2]
[388648410,1759296692178,-2040.12,0.00024931,2]
[388648411,1759296692194,-517.16771904,0.00024931,2]
[388648412,1759296692206,-2978.08,0.00024931,2]
[388648413,1759296692221,-500.0,0.00024931,2]
[388648414,1759296692236,-541.42,0.00024931,2]
[388648415,1759296692251,-3095.38,0.00024931,2]
[388648416,1759296692266,-7691.07,0.00024931,2]
[388648417,1759296692278,-500.0,0.00024931,2]
[388648418,1759296692293,-500.0,0.00024931,2]
[388648419,1759296692308,-2146.61,0.00024931,2]
[388648420,1759296692323,-154.06980634,0.00024931,2]
[388648421,1759296692338,-500.0,0.00024931,2]
[388648422,1759296692352,-1449.36,0.00024931,2]
[388648423,1759296692367,-500.0,0.00024931,2]
[388648424,1759296692381,-3557.07,0.00024931,2]
[388648425,1759296692396,-4440.59,0.00024931,2]
[388648426,1759296692410,-629.57,0.00024931,2]
[388648427,1759296692425,-1452.24,0.00024931,2]
[388648428,1759296692438,-500.0,0.00024931,2]
[388648429,1759296692451,-415.3943596,0.00024931,2]
[388648430,1759296692462,-3242.79,0.00024931,2]
[388648431,1759296692476,-4626.85,0.00024931,2]
[388648432,1759296692491,-3688.84,0.00024931,2]
[388648433,1759296692503,-500.0,0.00024931,2]
[388648434,1759296692514,-764.23,0.00024931,2]
[388648435,1759296692530,-5299.97,0.00024931,2]
[388648436,1759296692543,-500.0,0.00024931,2]
[388648437,1759296692555,-1312.6,0.00024931,2]
[388648438,1759296692567,-1983.75,0.00024931,2]
[388648439,1759296692579,-2793.6,0.00024931,2]
[388648440,1759296692599,-500.0,0.00024931,2]
[388648441,1759296692610,-671.39,0.00024931,2]
[388648442,1759296692623,-500.0,0.00024931,2]
[388648443,1759296692636,-3455.67,0.00024931,2]
[388648444,1759296692649,-3658.05,0.00024931,2]
[388648445,1759296692661,-2858.06,0.00024931,2]
[388648446,1759296692676,-4384.97,0.00024931,2]
[388648447,1759296692688,-1170.53,0.00024931,2]
[388648448,1759296692700,-500.0,0.00024931,2]
[388648449,1759296692713,-1141.39,0.00024931,2]
[388648450,1759296692725,-3454.33,0.00024931,2]
[388648451,1759296692737,-6322.98,0.00024931,2]
[388648452,1759296692755,-1149.07,0.00024931,2]
[388648453,1759296692768,-500.0,0.00024931,2]
[388648454,1759296692781,-500.0,0.00024931,2]
[388648455,1759296692794,-4649.29,0.00024931,2]
[388648456,1759296692807,-2328.41,0.00024931,2]
[388648457,1759296692821,-500.0,0.00024931,2]
[388648458,1759296692834,-500.0,0.00024931,2]
[388648459,1759296692847,-500.0,0.00024931,2]
[388648460,1759296692861,-4813.23,0.00024931,2]
[388648461,1759296692873,-928.44,0.00024931,2]
[388648462,1759296692885,-517.14776741,0.00024931,2]
[388648463,1759296692897,-885.49,0.00024931,2]
[388648464,1759296692910,-2140.79,0.00024931,2]
[388648465,1759296692923,-500.0,0.00024931,2]
[388648466,1759296692935,-888.08,0.00024931,2]
[388648467,1759296692947,-500.0,0.00024931,2]
[388648468,1759296692960,-4117.91,0.00024931,2]
[388648469,1759296692972,-500.0,0.00024931,2]
[388648470,1759296692985,-500.0,0.00024931,2]
[388648471,1759296692997,-6200.23,0.00024931,2]
[388648472,1759296693008,-500.0,0.00024931,2]
[388648473,1759296693021,-5688.23,0.00024931,2]
[388648474,1759296693033,-500.0,0.00024931,2]
[388648475,1759296693046,-500.0,0.00024931,2]
[388648476,1759296693058,-500.0,0.00024931,2]